Cogmind - Beta 15 @@@ ROGUE MODE // 2025.07.01 @ 15:44:01 Player: SirusTheMadDJ Result: Smashed by cave-in Performance ------------- Evolutions (2) 1000 Regions Visited (5) 1000 Robots Destroyed (71) 355 Value Destroyed (1653) 1653 Prototype IDs (23) 460 Alien Tech Used (0) 0 Bonus (325) 325 TOTAL SCORE: 4793 Bonus ------- Follower Combat Kills 25 Aligned with FarCom 300 Cogmind --------- Core Integrity 0/550 Matter 152/300 Energy 100/100 System Corruption 15% Temperature Cool (0) Movement Flying (155) Ox3 Location -8/Materials Parts ------- > --- POWER (2) -------- (None) > --- PROPULSION (2) --- Surge Thruster > --- UTILITY (4) ------ Medium Storage Unit Authchip [Storage] > --- WEAPON (3) ------- (None) > --- INVENTORY (10) --- Improved Heat Sink Weight Redist. System Advanced Visual Processing Unit Authchip [R/Combat] Chronowheel Missile Launcher Peak State ------------ > --- POWER ------------ Light Deuterium Engine Light Deuterium Engine > --- PROPULSION ------- Carbon-fiber Leg Carbon-fiber Leg > --- UTILITY ---------- Targeting Computer Hacking Suite System Shield Authchip [Armor] > --- WEAPON ----------- Pulse Rifle Minigun Flak Cannon > --- INVENTORY -------- Improved Heat Sink Medium Storage Unit Authchip [Storage] Chronowheel Grenade Launcher [Rating: 34] Favorites ----------- Power Light Angular Momentum Engine Engine Light Angular Momentum Engine Power Core Light Nuclear Core Propulsion Aluminum Leg Leg Aluminum Leg Flight Unit Surge Thruster Utility Medium Storage Unit Device Sensor Array Storage Medium Storage Unit Processor Targeting Computer Hackware System Shield Weapon Pulse Rifle Energy Gun Pulse Rifle Ballistic Gun Minigun Ballistic Cannon Light Cannon Launcher Grenade Launcher Special Weapon Mining Laser Slashing Weapon Blade Saw Special Melee Weapon Datajack Build | -11 -10 -10 -10 -9 -8 ------- Run | Yrd Mat Min Exi Min Mat Slots Evolved 4 | . . . . . 4 Power 1 | . . . . . 1 Propulsion . | . . . . . . Utility 2 | . . . . . 2 Weapon 1 | . . . . . 1 Parts Attached 47 | 6 13 9 . . 19 Power 9 | 1 3 1 . . 4 Engine 6 | 1 2 1 . . 2 Core 3 | . 1 . . . 2 Reactor . | . . . . . . Propulsion 15 | 2 4 4 . . 5 Treads . | . . . . . . Leg 13 | 2 4 4 . . 3 Wheel . | . . . . . . Hover . | . . . . . . Flight 2 | . . . . . 2 Utility 10 | 1 4 . . . 5 Device 1 | . 1 . . . . Storage 4 | 1 2 . . . 1 Processor 1 | . 1 . . . . Hackware 4 | . . . . . 4 Protection . | . . . . . . Artifact . | . . . . . . Weapon 13 | 2 2 4 . . 5 Energy Gun 3 | 1 . 1 . . 1 Energy Cannon . | . . . . . . Ballistic Gun 3 | 1 . 2 . . . Ballistic Cannon 3 | . 2 . . . 1 Launcher 1 | . . . . . 1 Special Weapon 1 | . . 1 . . . Impact Weapon . | . . . . . . Slashing Weapon 1 | . . . . . 1 Piercing Weapon . | . . . . . . Special Melee Weapon 1 | . . . . . 1 Unidentified Prototypes . | . . . . . . Parts Lost 20 | . 3 2 . . 15 Power 5 | . 1 1 . . 3 Propulsion 5 | . 1 . . . 4 Utility 3 | . 1 . . . 2 Weapon 7 | . . 1 . . 6 Highest Loss Streak 6 | . 1 1 . . 6 To Critical Strikes 1 | . . . . . 1 Average Backups 8 | 2 8 9 9 10 8 Power . | . 1 . . . . Propulsion . | 1 1 . . . . Utility 4 | . 2 5 6 6 5 Weapon 2 | . 2 1 2 2 1 Tool/Special . | . . . . . . Unused Backups 13 | . 2 2 1 . 8 Power 1 | . . 1 . . . Propulsion 3 | . 2 1 . . . Utility 7 | . . . 1 . 6 Weapon 1 | . . . . . 1 Tool/Special 1 | . . . . . 1 Average Slot Usage (%) 95 | . 97 99 100 100 88 Engine 12 | . 11 13 14 14 10 Core 1 | . 2 . . . 2 Leg 24 | . 27 28 28 28 15 Device 1 | . 6 . . . . Storage 12 | . 14 14 14 14 8 Processor 9 | . 6 14 14 14 8 Hackware 5 | . . . . . 18 Energy Gun 7 | . 1 4 14 14 10 Ballistic Gun 7 | . 1 11 14 14 5 Ballistic Cannon 10 | . 24 10 . . 5 Peak Build Rating 34 | 6 10 20 21 21 34 Average Rating 17 | 4 7 11 20 21 27 On Entrance 12 | . 6 8 20 21 21 Naked Turns . | . . . . . . Heaviest Build 32 | 13 22 25 25 25 32 Greatest Support 30 | 20 20 30 30 30 30 Greatest Overweight (x) 6 | 3 2 1 . . 6 Average Overweight (x) . | . . . . . . Largest Inventory Capacity 10 | 8 10 10 10 10 10 Average Capacity 9 | 7 9 10 10 10 9 Most Carried 10 | 3 10 10 10 10 10 Average Carried 8 | 2 8 9 9 10 8 Final Capacity 10 | 8 10 10 10 10 10 Final Carried 10 | 3 10 9 10 10 6 Class Distribution -------------------- 64% | Mutant 19% | Hacker-Skirmisher 10% | Scavenger-Mutant 4% | Hacker-Mutant Dominant Class ---------------- Mutant | -10/Materials Scavenger-Mutant | -10/Mines Mutant | -10/Exiles Mutant | -9/Mines Hacker-Skirmisher | -8/Materials Resources | -11 -10 -10 -10 -9 -8 ----------- Run | Yrd Mat Min Exi Min Mat Matter Collected 1697 | 263 508 266 . 31 629 Remotely . | . . . . . . Salvage Created 1969 | 70 674 281 . 31 913 Parts 128 | 2 42 16 . 6 62 Haulers Intercepted 4 | . 2 . . . 2 Recyclers Shooed 6 | . 5 1 . . . Parts Field Recycled . | . . . . . . Retrieved Matter . | . . . . . . Parts Self-Destructed . | . . . . . . Prevented . | . . . . . . Kills | -11 -10 -10 -10 -9 -8 ------- Run | Yrd Mat Min Exi Min Mat Combat Hostiles Destroyed 48 | . 13 6 . 3 26 Guns 22 | . 3 2 . 2 15 Cannons 19 | . 10 4 . . 5 AOE 7 | . . . . 1 6 Classes Destroyed 10 | 1 6 . . . 3 Worker 5 | . 2 . . . 3 Builder 1 | . . . . . 1 Hauler 4 | . 2 . . . 2 Recycler 7 | 1 2 2 . . 2 Operator 3 | . 1 . . . 2 Watcher 3 | . 3 . . . . Swarmer 15 | . 2 . . 3 10 Cutter 3 | . . . . . 3 Grunt 26 | . 11 6 . . 9 Sentry 4 | . . . . . 4 Best Kill Streak 6 | 1 5 3 . 3 6 Combat Bots Only 4 | . 3 3 . 3 4 Max Kills in Single Turn 2 | 1 1 1 . 1 2 Gunslinging . | . . . . . . Exploded 1 | . . . . 1 1 Melee . | . . . . . . Uniques/NPCs Destroyed . | . . . . . . Combat | -11 -10 -10 -10 -9 -8 -------- Run | Yrd Mat Min Exi Min Mat Hostile Shots Fired 268 | . 95 39 . 5 129 Missed 67 | . 22 11 . 1 33 Hits 201 | . 73 28 . 4 96 Melee 4 | . . . . . 4 Projectile 197 | . 73 28 . 4 92 AOE 1 | . . . . . 1 Critical Strikes 6 | . . . . . 6 Damage Taken 3371 | . 826 412 . 32 2101 Core 795 | . 194 48 . . 553 Absorbed by Shields . | . . . . . . Core Remaining (%) 51 | 100 . . . 3 . Volleys Fired 200 | 3 74 26 . 3 94 Largest 3 | 2 2 2 . 2 3 Hottest 163 | 70 70 88 . 88 163 Shots Fired 378 | 6 148 51 . 6 167 Gun 224 | 6 60 21 . 6 131 Cannon 145 | . 88 30 . . 27 Launcher 9 | . . . . . 9 Special . | . . . . . . Kinetic 242 | 3 118 44 . 3 74 Thermal 127 | 3 30 7 . 3 84 Explosive 9 | . . . . . 9 Electromagnetic . | . . . . . . Robot Hit Streak 12 | 3 10 5 . 2 12 Robot Miss Streak 17 | 1 5 3 . 2 17 Penetration Max . | . . . . . . Secondary Targets 4 | . 1 1 . 1 1 Max Gunslinging Chain 1 | . 1 1 . 1 1 Shots Hit Robots 218 | 4 78 27 . 3 106 Core Hits 124 | 2 33 11 . 3 75 Critical Kills . | . . . . . . Critical Parts Destroyed . | . . . . . . Critical Strikes 9 | . 7 . . . 2 Burn 5 | . 4 . . . 1 Blast 3 | . 3 . . . . Sever 1 | . . . . . 1 Melee Attacks 3 | . . . . . 3 Impact . | . . . . . . Slashing 1 | . . . . . 1 Piercing . | . . . . . . Sneak Attacks 3 | . . . . . 3 Combat Hostiles . | . . . . . . Follow-up Attacks . | . . . . . . Damage Inflicted 4028 | 44 1180 462 . 74 2268 Guns 1919 | 44 369 177 . 32 1297 Cannons 1443 | . 797 285 . . 361 Explosions 622 | . . . . 42 580 Melee 30 | . . . . . 30 Ramming 14 | . 14 . . . . Kinetic 2271 | 8 953 392 . 16 902 Thermal 1133 | 36 213 70 . 58 756 Explosive 580 | . . . . . 580 Electromagnetic . | . . . . . . Impact . | . . . . . . Slashing 30 | . . . . . 30 Piercing . | . . . . . . Highest Corruption 15 | . 2 2 2 2 15 Average Corruption 2 | . 2 2 2 2 13 Corruption Purged . | . . . . . . Corruption Blocked . | . . . . . . Effects 34 | . 5 10 11 7 1 Message Errors 9 | . 3 2 3 1 . Matter Fused 7 | . 1 4 1 1 . Heat Flow Errors 4 | . . . 2 1 1 Energy Discharges 8 | . . 2 4 2 . Parts Rejected 1 | . 1 . . . . Data Loss (minor) 3 | . . 1 1 1 . Data Loss (major) 1 | . . 1 . . . Alerts 1 | . . . . 1 . Overload Shots . | . . . . . . Overflow Damage 6 | . 3 . . . 3 Projectiles 3 | . 3 . . . . Explosions 3 | . . . . . 3 Melee . | . . . . . . Knockbacks 22 | . 7 3 . . 12 Impact . | . . . . . . Kinetic 20 | . 7 3 . . 10 Secondary 2 | . . . . . 2 Self-Inflicted Damage 150 | . . . . . 150 Shots 4 | . . . . . 4 Rammed . | . . . . . . Targets Rammed 2 | . 2 . . . . Kicked 2 | . 2 . . . . Crushed . | . . . . . . Highest Temperature 676 | 50 284 276 244 183 676 Average Temperature 136 | 26 82 72 116 81 192 Received Heat Transfer 1011 | . 387 228 . . 396 Effects 36 | . 1 3 . . 32 Shutdowns 9 | . . . . . 9 Energy Bleed 4 | . 1 . . . 3 Interference 9 | . . 3 . . 6 Matter Decay 4 | . . . . . 4 Short Circuit 2 | . . . . . 2 Damage (minor) 1 | . . . . . 1 Damage (major) 4 | . . . . . 4 Damage (core) 3 | . . . . . 3 Siege Activations . | . . . . . . Martial Activations . | . . . . . . Shielding Activations . | . . . . . . Robots Disrupted . | . . . . . . Combat Hostiles . | . . . . . . Robots Corrupted . | . . . . . . Combat Hostiles . | . . . . . . Parts Fried . | . . . . . . Impact Corruptions . | . . . . . . Robots Melted . | . . . . . . Combat Hostiles . | . . . . . . Parts Melted 7 | 1 2 . . 1 3 Heat Transferred 3010 | 111 925 148 . 87 1739 Parts Sabotaged . | . . . . . . Parts Stolen . | . . . . . . Parts Stripped . | . . . . . . Power Chain Reactions . | . . . . . . Alert | -11 -10 -10 -10 -9 -8 ------- Run | Yrd Mat Min Exi Min Mat Maximum Alert Level 1 | . . . . . 1 Low Security (%) 98 | 100 100 100 . 100 96 Level 1 1 | . . . . . 3 Level 2 . | . . . . . . Level 3 . | . . . . . . Level 4 . | . . . . . . Level 5 . | . . . . . . High Security . | . . . . . . Max Security . | . . . . . . Peak Influence 246 | 5 73 89 . 97 246 Initial 9 | . . 9 . . . Average 31 | 1 17 23 . 12 60 Influence Increases 1482 | 5 373 202 . 97 805 Destroy 0b10 Robot/C 980 | . 260 140 . 60 520 Destroy 0b10 Robot/NC 120 | 5 50 15 . . 50 Destroy Leader 214 | . 60 30 . 10 114 Allied During Kill 2 | . . 2 . . . Successful Hack 4 | . . . . . 4 Disable Machine 75 | . . . . 15 60 Destroy Structure 57 | . 3 . . 12 42 Lose Combat Pursuer 30 | . . 15 . . 15 Influence Decreases 1308 | 5 348 227 . 97 631 Entered New Map 16 | . . 16 . . . Time Decay 1054 | 5 338 172 . 97 442 Lost Part 164 | . 10 19 . . 135 Lost Ally 20 | . . 20 . . . Purge Threat 54 | . . . . . 54 Squads Dispatched 10 | . 3 1 . . 6 Investigation 2 | . 1 1 . . . Extermination . | . . . . . . Reinforcement 7 | . 2 . . . 5 Assault . | . . . . . . Garrison 1 | . . . . . 1 Intercept . | . . . . . . Searches Triggered . | . . . . . . Construction Impeded . | . . . . . . Haulers Reinforced . | . . . . . . Active Scanning Responses . | . . . . . . Cargo Convoy Interrupts . | . . . . . . Stealth | -11 -10 -10 -10 -9 -8 --------- Run | Yrd Mat Min Exi Min Mat Distress Signals 3 | . 1 . . . 2 Communications Jammed . | . . . . . . Distress Signals . | . . . . . . Times Spotted 67 | . 21 7 . 3 36 Peak Tracking Total 7 | . 6 2 . 3 7 Tactical Retreats 2 | . . 1 . . 1 Traps | -11 -10 -10 -10 -9 -8 ------- Run | Yrd Mat Min Exi Min Mat Traps Triggered 5 | . 2 . . . 3 Indirectly . | . . . . . . Trap Hack Attempts . | . . . . . . Triggered . | . . . . . . Disarmed . | . . . . . . Reprogrammed . | . . . . . . Reused . | . . . . . . Traps Extracted . | . . . . . . Installed . | . . . . . . Triggered . | . . . . . . Machines | -11 -10 -10 -10 -9 -8 ---------- Run | Yrd Mat Min Exi Min Mat Machines Disabled 5 | . . . . 1 4 Max in Single Turn 2 | . . . . 1 2 Garrison Access 1 | . . . . . 1 Machines Repaired . | . . . . . . Machines Dismantled . | . . . . . . Machines Sabotaged . | . . . . . . Overloaded Fab Kills . | . . . . . . Hacking | -11 -10 -10 -10 -9 -8 --------- Run | Yrd Mat Min Exi Min Mat Machines Accessed 10 | . 2 1 3 1 3 Terminals 3 | . 1 . . . 2 Fabricators . | . . . . . . Repair Stations 1 | . 1 . . . . Recycling Units . | . . . . . . Scanalyzers . | . . . . . . Garrison Access 1 | . . . . . 1 Total Hacks 49 | . 4 1 31 1 12 Successful 43 | . 2 1 31 1 8 Failed 6 | . 2 . . . 4 Catastrophic . | . . . . . . Database Lockouts . | . . . . . . Manual 1 | . . . 1 . . Terminals 12 | . 2 . . . 10 Fabricators . | . . . . . . Repair Stations 2 | . 2 . . . . Recycling Units . | . . . . . . Scanalyzers . | . . . . . . Garrison Access 2 | . . . . . 2 Terminal Hacks 41 | . 1 1 31 1 7 Record 34 | . . . 30 . 4 Open Door 2 | . . 1 . 1 . Unreport Threat 1 | . . . . . 1 Maintenance Status 1 | . . . . . 1 Zone Layout 2 | . 1 . . . 1 Proto ID Catalog 1 | . . . 1 . . Fabricator Hacks . | . . . . . . Repair Station Hacks 1 | . 1 . . . . Scan Component 1 | . 1 . . . . Recycling Unit Hacks . | . . . . . . Scanalyzer . | . . . . . . Garrison Access Hacks 1 | . . . . . 1 Seal Access 1 | . . . . . 1 Unauthorized Hacks . | . . . . . . Terminals . | . . . . . . Fabricators . | . . . . . . Repair Stations . | . . . . . . Recycling Units . | . . . . . . Scanalyzers . | . . . . . . Garrison Access . | . . . . . . Data Cores Recovered . | . . . . . . Used . | . . . . . . Hacking Detections 3 | . 1 . . . 2 Full Trace Events 1 | . . . . . 1 Feedback Events . | . . . . . . Feedback Blocked 1 | . . . . . 1 Robot Schematics Acquired . | . . . . . . Robots Built . | . . . . . . Authchips . | . . . . . . Time . | . . . . . . Total Robot Build Rating . | . . . . . . Part Schematics Acquired . | . . . . . . Parts Built . | . . . . . . Authchips . | . . . . . . Time . | . . . . . . Total Part Build Rating . | . . . . . . Parts Repaired . | . . . . . . Time . | . . . . . . Parts Recycled . | . . . . . . Recycled Matter . | . . . . . . Retrieved Matter . | . . . . . . Retrieved Components . | . . . . . . Parts Scanalyzed . | . . . . . . Part Schematics Acquired . | . . . . . . Parts Damaged . | . . . . . . Bothacking | -11 -10 -10 -10 -9 -8 ------------ Run | Yrd Mat Min Exi Min Mat Used RIF Installer . | . . . . . . Robots Hacked 1 | . . . . . 1 Non-combat 1 | . . . . . 1 Combat . | . . . . . . Robot Hacks Applied 1 | . . . . . 1 parse_system 1 | . . . . . 1 Relay Couplers Released . | . . . . . . Fabnet Peak Effective % . | . . . . . . Robots Rewired . | . . . . . . Allies Hacked . | . . . . . . Hacks Repelled . | . . . . . . Allies | -11 -10 -10 -10 -9 -8 -------- Run | Yrd Mat Min Exi Min Mat Total Allies 1 | . . 1 . . . Largest Group 1 | . . 1 . . . Highest-Rated Group 31 | . . 31 . . . Highest-Rated Ally 31 | . . 31 . . . Total Orders . | . . . . . . Ally Attacks 4 | . . 4 . . . Total Damage 63 | . . 63 . . . Kills 2 | . . 2 . . . Allies Corrupted . | . . . . . . Allies Melted . | . . . . . . Intel | -11 -10 -10 -10 -9 -8 ------- Run | Yrd Mat Min Exi Min Mat Active Infowar (turns) 677 | . 677 . . . . Sensors 677 | . 677 . . . . Robot Analysis Total . | . . . . . . Derelict Logs Recovered 2 | . . 1 . 1 . Drone Launches . | . . . . . . Drone Recoveries . | . . . . . . Exploration | -11 -10 -10 -10 -9 -8 ------------- Run | Yrd Mat Min Exi Min Mat Turns Passed 4997 | 81 1535 602 513 759 1507 Spaces Moved 2748 | 52 829 357 426 502 582 Core 9 | 8 . . . . 1 Treads . | . . . . . . Legs 2737 | 44 829 357 426 502 579 Wheels . | . . . . . . Hover . | . . . . . . Flight 2 | . . . . . 2 Fastest Speed 50 | 50 120 120 120 120 120 Average Speed 139 | 118 146 126 120 120 172 Slowest Speed 300 | 200 260 190 120 120 300 Overloaded Moves . | . . . . . . Propulsion Burnouts . | . . . . . . Robots Hopped . | . . . . . . Potential Cave-ins 2 | . . . . . 2 Cave-ins Triggered 4 | . . . . . 4 Exploration Rate (%) 63 | 4 94 70 72 89 49 Regions Visited 5 Branch Regions 3 Pre-discovered Areas 1 | . . . 1 . . Known Exits Taken 1 | . . . . 1 . Unknown Exits Taken 4 | 1 1 1 1 . . Scrap Searched 2 | . . 1 . 1 . Spaces Dug . | . . . . . . Terrain Destroyed 62 | . . . . 13 49 Melee . | . . . . . . Projectile . | . . . . . . AOE 62 | . . . . 13 49 Terrain Rammed . | . . . . . . Walls Destroyed . | . . . . . . Machines Disabled . | . . . . . . Actions | -11 -10 -10 -10 -9 -8 --------- Run | Yrd Mat Min Exi Min Mat Total 3548 | 63 1003 460 428 653 941 Wait 478 | . 57 56 . 149 216 Move 2743 | 51 828 356 425 501 582 Hop . | . . . . . . Pick Up 38 | 3 17 5 2 . 11 Fast Attach 29 | 6 5 3 . . 15 Attach 9 | . 2 1 . . 6 Detach . | . . . . . . Swap 16 | . 7 5 . . 4 Drop 30 | . 11 8 1 . 10 Fire 200 | 3 74 26 . 3 94 Melee 3 | . . . . . 3 Ram . | . . . . . . Kick 2 | . 2 . . . . Crush . | . . . . . . Escape Stasis . | . . . . . . Rewire . | . . . . . . Trap . | . . . . . . Miscellaneous . | . . . . . . Route ------- -11/Scrapyard -10/Materials (discovered 4 exits: [*Mat x3] / *Min) -10/Mines (discovered 4 exits: [*Mat x2] / *Exi / [*Sub]) -10/Exiles -9/Mines (discovered 2 exits: *Mat x2) -8/Materials (discovered 1 exit: *Fac) History --------- Turn | Location | Event 10 | -11/Scrapyard | Discovered new exit (range 15) 82 | -11/Scrapyard | Entered Materials 309 | -10/Materials | Build established: Mutant 694 | -10/Materials | Core integrity fell below 50% 904 | -10/Materials | Discovered new exit (range 12) 1154 | -10/Materials | Discovered new exit (range 12) 1295 | -10/Materials | Discovered new exit (range 16) 1501 | -10/Materials | Discovered new exit (range 9) 1617 | -10/Materials | Entered Mines 1674 | -10/Mines | Core integrity fell below 20% 1791 | -10/Mines | Discovered new exit (range 6) 1847 | -10/Mines | Discovered new exit (range 7) 1876 | -10/Mines | Discovered new exit (range 9) 1925 | -10/Mines | Assembled infested the area 1930 | -10/Mines | Assisted by a Guerilla fighting off Assembled 1963 | -10/Mines | Received a Mining Laser from a helpful Derelict 2008 | -10/Mines | Met a Derelict shopkeep closing up shop 2015 | -10/Mines | Build established: Scavenger-Mutant 2114 | -10/Mines | Learned 2 Materials zone layouts 2213 | -10/Mines | Deemed a non-threat by the Exiles lab entrance 2213 | -10/Mines | Discovered new exit (range 5) 2219 | -10/Mines | Entered Exiles 2251 | -10/Exiles | Met 8R-AWN 2270 | -10/Exiles | Met EX-HEX 2318 | -10/Exiles | Build established: Mutant 2324 | -10/Exiles | Met EX-DEC 2356 | -10/Exiles | Learned location of Zion (-7) 2431 | -10/Exiles | Discovered new exit (range 14) 2522 | -10/Exiles | Met EX-BIN 2546 | -10/Exiles | Aligned with FarCom system 2547 | -10/Exiles | Given EX-Vault access code 2593 | -10/Exiles | Opened EX-Vault 2597 | -10/Exiles | Found Prototype Processor 2600 | -10/Exiles | Identified 0b10 Alert Chip 2606 | -10/Exiles | Found Chronowheel 2644 | -10/Exiles | Warned to stay clear of 0b10 Research branches 2732 | -10/Exiles | Left Exiles lab with Chronowheel 2732 | -10/Exiles | Entered Mines 2962 | -9/Mines | A weapon hastily lodged in a ceiling crevice suddenly fell to the ground 3092 | -9/Mines | Found the Drone Emporium 3184 | -9/Mines | Found DCF Scrap (14 items) 3335 | -9/Mines | Discovered new exit (range 5) 3346 | -9/Mines | Identified exit to Materials 3491 | -9/Mines | Entered Materials 3491 | -8/Materials | Evolved 4 slots: Power x1, Utility x2, Weapon x1 3492 | -8/Materials | Identified exit to Factory 4120 | -8/Materials | Build established: Hacker-Skirmisher 4476 | -8/Materials | Garrison activated, responded to threat 4793 | -8/Materials | Core integrity fell below 50% 4873 | -8/Materials | Lost 4 parts (1p1n2w) 4923 | -8/Materials | Core integrity fell below 20% 4972 | -8/Materials | Crushed by falling debris 4972 | -8/Materials | System corruption reached 10% 4981 | -8/Materials | Crushed by falling debris 4986 | -8/Materials | Crushed by falling debris 4999 | -8/Materials | Crushed by falling debris 4999 | -8/Materials | Smashed by cave-in Last Messages --------------- System corrupted by crushing effect (+2). System Shield destroyed. System corrupted by crushing effect (+1). Pulse Rifle destroyed. System corrupted by crushing effect (+1). Lgt. Nuclear Core destroyed. System corrupted by crushing effect (+3). Blade Saw destroyed. System corrupted by crushing effect (+5). Surge Thruster crushed. System corrupted: Heat flow error (+107). The unstable cave ceiling collapses. Crushed by falling debris. Lgt. Ion Engine crushed. The unstable cave ceiling collapses. Crushed by falling debris. Surge Thruster destroyed. System corrupted by crushing effect (+3). The unstable cave ceiling collapses. Crushed by falling debris. Map ----- +----------------------------------------------------+ | ?" ## "Y ##???????????????????????????????????? | | ?" ## "" #????????????????????????????????????? | | ? ## #????????????????????????????????????? | | ? ## #????????????????????????????????????? | | ?#### #######??????????????????????????????? | | ?########+### #??????????????????????????????? | | ? #????###???????????????????????? | | ? " #????# ???????????????????????? | | ? #????# ???????????????????????? | | ?## ####### #????# ???????????????????????? | | ?## #?????### ###????###???????????????????????? | | ? # #???????# #????????????????????????????????? | | ? + ######### #??????????#?????????????????????? | | ? # ## #?????????? ?????H???????????????? | | ? + ## #?????????? ?????????????????????? | | ? # ## #?????????? ?????????????????????? | | ? #########+###+#?????????# #????????????????????? | | ? #????# #?????????# #????????????????????? | | ? #????# """ #?????????# #????????????????????? | | ? #????# w""" #?????????# ######???????????????? | | ?####### """ w#?????????# #! #???????????????? | | ???# # #?????????# # #???????????????? | | ??????????????????????????# #! #???????????????? | | ?????????????????????????## # #???????????????? | | ????????????????????????### #???????????????? | | ?????????????w?????????##@# #!! #??????????# # | | ???????????????????########%#!%= ############ # | | ??????????????????#########=#*= + ^^+ # | | ???????????+ ! =+ # ### "" # | | ???????????# #### # ###### """ ### T" # | | ????????????? """??###### # "T" + "" # | | ????????????????????????# # g ### # | | ????????????????????????# g ###### | | ????????????????????????##### ### #???# | | ?????????????????????????????#### ######## | | ???????????????????????########## | | ?????????????????????? """%+ % ######## | | ?????????????????????? "Y" ## ##+#####+# #???? | | ???????????????????????* ?????# # ##### | | ????????????????????Y?????????#%# ### | | ??????????????????????????????# # #?# "T" | | ??????????????????????????????# # ##?# | | ??????????????????????????????# ###########??# | | ??????????????????????????????# ## #????# | | ??????????????????????????????#%## """ #????# | | ??????????????????????????????? ?# """ #????# | | ???????????????????????????????%?+ """ #????# | | ??????????????????????????????? ?# #????# | | ???????????????????????????????#?# #????##### | | ?????????????????????????????????########???????# | +----------------------------------------------------+ Best States ------------- Heat Dissipation 31 Energy Generation 27 Energy Capacity 250 Matter Stores 300 Matter Capacity 300 Sight Range 16 Robot Scan Range 14 Terrain Scan Density 10 Evasion (%) 55 Targeting Accuracy 5 Offensive Hacking 10 Defensive Hacking 10 Authchip Count 3 Item Schematics ----------------- None Robot Schematics ------------------ None Fabricated ------------ Nothing Repaired ---------- Nothing Alien Tech Used ----------------- None Achievements -------------- None Challenges ------------ None Game ------ Seed HeartBurstClaw Manual? 0 Play Time 00:46:12 Cumulative 15.0 hours Start 2025.07.01 @ 14:59:46 End 2025.07.01 @ 15:44:01 Sessions 1 Manual Loads 0 Difficulty Rogue Special Mode None Game No. 34 Rogue 34 Adventurer 0 Explorer 0 Win Type - Total 0 Types 0/0/0/0/0/0/0/0/0/0 Lore% 6 Gallery% 16 Achievement% 16 Wizard Run 0 Options --------- Layout 1 ASCII 0 Keyboard 0 Movement Mouse Keybinds 0 Fullscreen 1 Font 24/Smallcaps Map View 50x35 Zoom Use 0% Tactical HUD 0 Map Filters NONE Filters NONE Steam 1 RUN: 0ae9ef5b-3c64-498d-a1f7-f35814bcc3a9